lending/lending_fUSD_20240124
["ID","MTS","AMOUNT","RATE_DAILY","PERIOD"]
[312635521,1706122298409,-500.0,0.00049589,31]
[312635522,1706122298419,-500.0,0.00049589,31]
[312635523,1706122298431,-590.42,0.00049589,31]
[312635524,1706122298441,-500.0,0.00049589,31]
[312635525,1706122298451,-500.0,0.00049589,31]
[312635526,1706122298461,-500.0,0.00049589,31]
[312635527,1706122298471,-1598.07,0.00049589,31]
[312635528,1706122298480,-526.85,0.00049589,31]
[312635529,1706122298490,-500.0,0.00049589,31]
[312635530,1706122298501,-500.0,0.00049589,31]
[312635531,1706122298511,-1012.55,0.00049589,31]
[312635532,1706122298520,-500.0,0.00049589,31]
[312635533,1706122298530,-822.56,0.00049589,31]
[312635534,1706122298539,-500.0,0.00049589,31]
[312635535,1706122298551,-509.63001976,0.00049589,31]
[312635536,1706122298560,-500.0,0.00049589,31]
[312635537,1706122298569,-500.0,0.00049589,31]
[312635538,1706122298579,-2206.82,0.00049589,7]
[312635539,1706122298589,-500.0,0.00049589,31]
[312635540,1706122298598,-650.91,0.00049589,31]
[312635541,1706122298608,-1000.0,0.00049589,7]
[312635542,1706122298618,-500.0,0.00049589,31]
[312635543,1706122298628,-500.0,0.00049589,31]
[312635544,1706122298638,-731.16,0.00049589,31]
[312635545,1706122298648,-508.56186571,0.00049589,31]
[312635546,1706122298659,-500.0,0.00049589,31]
[312635547,1706122298669,-500.0,0.00049589,31]
[312635548,1706122298679,-500.0,0.00049589,31]
[312635549,1706122298689,-500.0,0.00049589,31]
[312635550,1706122298699,-500.0,0.00049589,31]
[312635551,1706122298709,-500.0,0.00049589,31]
[312635552,1706122298719,-552.33,0.00049589,31]
[312635553,1706122298729,-500.0,0.00049589,31]
[312635554,1706122298738,-508.81,0.00049589,31]
[312635555,1706122298748,-500.0,0.00049589,31]
[312635556,1706122298759,-813.7,0.00049589,31]
[312635557,1706122298769,-500.0,0.00049589,31]
[312635558,1706122298780,-500.0,0.00049589,31]
[312635559,1706122298790,-733.58,0.00049589,31]
[312635560,1706122298800,-500.0,0.00049589,31]
[312635561,1706122298811,-259.0259746,0.00049589,31]
[312635562,1706122298821,-500.0,0.00049589,31]
[312635563,1706122298832,-509.4,0.00049589,31]
[312635564,1706122298842,-500.0,0.00049589,31]
[312635565,1706122298853,-656.53,0.00049589,31]
[312635566,1706122298863,-500.0,0.00049589,31]
[312635567,1706122298873,-500.0,0.00049589,31]
[312635568,1706122298883,-748.28,0.00049589,31]
[312635569,1706122298893,-500.0,0.00049589,31]
[312635570,1706122298903,-500.0,0.00049589,31]
[312635571,1706122298913,-500.0,0.00049589,31]
[312635572,1706122298923,-737.23,0.00049589,31]
[312635573,1706122298934,-500.0,0.00049589,31]
[312635574,1706122298944,-500.0,0.00049589,31]
[312635575,1706122298954,-651.3,0.00049589,31]
[312635576,1706122298963,-494.93069221,0.00049589,31]
[312635577,1706122298973,-500.0,0.00049589,31]
[312635578,1706122298984,-364.61053274,0.00049589,31]
[312635579,1706122298994,-1130.82,0.00049589,7]
[312635580,1706122299004,-743.9,0.00049589,31]
[312635581,1706122299014,-695.86,0.00049589,31]
[312635582,1706122299024,-521.27558952,0.00049589,31]
[312635583,1706122299034,-514.4840952,0.00049589,31]
[312635584,1706122299043,-500.0,0.00049589,31]
[312635585,1706122299053,-500.0,0.00049589,31]
[312635586,1706122299063,-500.0,0.00049589,31]
[312635587,1706122299073,-500.0,0.00049589,31]
[312635588,1706122299083,-524.48,0.00049589,31]
[312635589,1706122299092,-500.0,0.00049589,31]
[312635590,1706122299102,-500.0,0.00049589,31]
[312635591,1706122299112,-500.0,0.00049589,31]
[312635592,1706122299121,-507.29951647,0.00049589,31]
[312635593,1706122299131,-577.96,0.00049589,31]
[312635594,1706122299140,-500.0,0.00049589,31]
[312635595,1706122299149,-500.0,0.00049589,31]
[312635596,1706122299159,-500.0,0.00049589,31]
[312635597,1706122299168,-822.67,0.00049589,31]
[312635598,1706122299178,-500.0,0.00049589,31]
[312635599,1706122299187,-500.0,0.00049589,31]
[312635600,1706122299197,-508.92114349,0.00049589,31]
[312635601,1706122299206,-508.57258978,0.00049589,31]
[312635602,1706122299215,-500.0,0.00049589,31]
[312635603,1706122299225,-500.0,0.00049589,31]
[312635604,1706122299235,-516.03712461,0.00049589,31]
[312635605,1706122299244,-500.0,0.00049589,31]
[312635606,1706122299254,-500.0,0.00049589,31]
[312635607,1706122299268,-539.38,0.00049589,31]
[312635608,1706122299281,-500.0,0.00049589,31]
[312635609,1706122299290,-754.54,0.00049589,31]
[312635610,1706122299300,-500.0,0.00049589,31]
[312635611,1706122299310,-646.02130567,0.00049589,31]
[312635612,1706122299322,-748.39,0.00049589,31]
[312635613,1706122299331,-759.37,0.00049589,31]
[312635614,1706122299341,-596.17,0.00049589,31]
[312635615,1706122299352,-500.0,0.00049589,31]
[312635616,1706122299361,-590.14,0.00049589,31]
[312635617,1706122299371,-500.0,0.00049589,31]
[312635618,1706122299380,-500.0,0.00049589,31]
[312635619,1706122299390,-1000.0,0.00049589,30]
[312635620,1706122299400,-500.0,0.00049589,31]
[312635621,1706122299410,-500.0,0.00049589,31]
[312635622,1706122299420,-574.37,0.00049589,31]
[312635623,1706122299429,-500.0,0.00049589,31]
[312635624,1706122299439,-836.66,0.00049589,31]
[312635625,1706122299448,-504.36643023,0.00049589,31]
[312635626,1706122299457,-834.27,0.00049589,31]
[312635627,1706122299467,-500.0,0.00049589,31]
[312635628,1706122299477,-514.02669287,0.00049589,31]
[312635629,1706122299486,-500.0,0.00049589,31]
[312635630,1706122299497,-500.0,0.00049589,31]
[312635631,1706122299506,-504.89345242,0.00049589,31]
[312635632,1706122299516,-500.0,0.00049589,31]
[312635633,1706122299526,-500.0,0.00049589,31]
[312635634,1706122299536,-500.0,0.00049589,31]
[312635635,1706122299545,-561.15,0.00049589,31]
[312635636,1706122299556,-571.13,0.00049589,31]
[312635637,1706122299566,-500.0,0.00049589,31]
[312635638,1706122299576,-722.96,0.00049589,31]
[312635639,1706122299586,-500.0,0.00049589,31]
[312635640,1706122299596,-2163.99,0.00049589,31]
[312635641,1706122299605,-510.30243013,0.00049589,31]
[312635642,1706122299615,-500.0,0.00049589,31]
[312635643,1706122299625,-574.84,0.00049589,31]
[312635644,1706122299634,-500.0,0.00049589,31]
[312635645,1706122299644,-500.0,0.00049589,31]
[312635646,1706122299654,-500.0,0.00049589,31]
[312635647,1706122299663,-500.0,0.00049589,31]
[312635648,1706122299673,-500.0,0.00049589,31]
[312635649,1706122299682,-624.88,0.00049589,31]
[312635650,1706122299692,-500.0,0.00049589,31]
[312635651,1706122299701,-1020.09,0.00049589,31]
[312635652,1706122299711,-500.0,0.00049589,30]
[312635653,1706122299720,-500.0,0.00049589,31]
[312635654,1706122299729,-500.0,0.00049589,31]
[312635655,1706122299739,-683.14,0.00049589,31]
[312635656,1706122299749,-1074.38,0.00049589,31]
[312635657,1706122299758,-500.0,0.00049589,31]
[312635658,1706122299768,-500.0,0.00049589,31]
[312635659,1706122299777,-500.0,0.00049589,31]
[312635660,1706122299787,-500.0,0.00049589,31]
[312635661,1706122299796,-500.0,0.00049589,31]
[312635662,1706122299807,-774.89,0.00049589,31]
[312635663,1706122299817,-598.13,0.00049589,31]
[312635664,1706122299826,-500.0,0.00049589,31]
[312635665,1706122299835,-500.0,0.00049589,31]
[312635666,1706122299845,-590.69,0.00049589,31]
[312635667,1706122299855,-822.96,0.00049589,31]
[312635668,1706122299864,-1001.25,0.00049589,31]
[312635669,1706122299874,-516.69287172,0.00049589,31]
[312635670,1706122299885,-739.58,0.00049589,31]
[312635671,1706122299895,-500.0,0.00049589,31]
[312635672,1706122299905,-511.12398188,0.00049589,31]
[312635673,1706122299914,-500.0,0.00049589,31]
[312635674,1706122299924,-500.0,0.00049589,31]
[312635675,1706122299934,-514.02527528,0.00049589,31]
[312635676,1706122299943,-500.0,0.00049589,31]
[312635677,1706122299953,-500.0,0.00049589,31]
[312635678,1706122299962,-500.0,0.00049589,31]
[312635679,1706122299971,-557.33,0.00049589,31]
[312635680,1706122299981,-500.0,0.00049589,31]
[312635681,1706122299992,-535.27,0.00049589,31]
[312635682,1706122300001,-1123.3,0.00049589,31]
[312635683,1706122300010,-505.48774612,0.00049589,31]
[312635684,1706122300020,-500.0,0.00049589,31]
[312635685,1706122300029,-559.97,0.00049589,31]
[312635686,1706122300038,-500.0,0.00049589,31]
[312635687,1706122300048,-500.0,0.00049589,31]
[312635688,1706122300058,-545.51,0.00049589,31]
[312635689,1706122300067,-703.65,0.00049589,31]
[312635690,1706122300077,-500.0,0.00049589,31]
[312635691,1706122300086,-290.56690475,0.00049589,31]
[312635692,1706122300096,-500.0,0.00049589,31]
[312635693,1706122300105,-500.0,0.00049589,31]
[312635694,1706122300115,-500.0,0.00049589,31]
[312635695,1706122300124,-500.0,0.00049589,31]
[312635696,1706122300134,-500.0,0.00049589,31]
[312635697,1706122300143,-507.77,0.00049589,31]
[312635698,1706122300153,-500.0,0.00049589,31]
[312635699,1706122300162,-500.0,0.00049589,31]
[312635700,1706122300172,-500.0,0.00049589,31]
[312635701,1706122300181,-500.0,0.00049589,31]
[312635702,1706122300191,-500.0,0.00049589,31]
[312635703,1706122300201,-500.0,0.00049589,31]
[312635704,1706122300212,-500.0,0.00049589,31]
[312635705,1706122300222,-507.29668342,0.00049589,31]
[312635706,1706122300233,-500.0,0.00049589,31]
[312635707,1706122300244,-500.0,0.00049589,31]
[312635708,1706122300254,-744.37,0.00049589,31]
[312635709,1706122300265,-500.0,0.00049589,31]
[312635710,1706122300275,-500.0,0.00049589,31]
[312635711,1706122300288,-540.51,0.00049589,31]
[312635712,1706122300298,-500.0,0.00049589,31]
[312635713,1706122300311,-638.61,0.00049589,31]
[312635714,1706122300323,-664.27,0.00049589,31]
[312635715,1706122300335,-506.22889991,0.00049589,31]
[312635716,1706122300346,-1168.99,0.00049589,31]
[312635717,1706122300537,-623.83,0.00049589,31]
[312635718,1706122300570,-500.0,0.00049589,31]
[312635719,1706122300581,-1288.27,0.00049589,31]
[312635720,1706122300590,-500.0,0.00049589,31]
[312635721,1706122300599,-521.409793,0.00049589,31]
[312635722,1706122300608,-500.0,0.00049589,31]
[312635723,1706122300617,-512.85426014,0.00049589,31]
[312635724,1706122300626,-500.0,0.00049589,31]
[312635725,1706122300636,-523.14918079,0.00049589,31]
[312635726,1706122300646,-510.36160434,0.00049589,31]
[312635727,1706122300655,-526.98219977,0.00049589,31]
[312635728,1706122300665,-502.68650803,0.00049589,31]
[312635729,1706122300675,-500.0,0.00049589,31]
[312635730,1706122300685,-468.63260349,0.00049589,31]
[312635731,1706122300694,-500.0,0.00049589,31]
[312635732,1706122300704,-500.0,0.00049589,31]
[312635733,1706122300714,-1216.74,0.00049589,31]
[312635734,1706122300725,-515.90821887,0.00049589,31]
[312635735,1706122300735,-500.0,0.00049589,31]
[312635736,1706122300745,-500.0,0.00049589,31]
[312635737,1706122300754,-789.81,0.00049589,31]
[312635738,1706122300764,-1358.17,0.00049589,31]
[312635739,1706122300774,-500.0,0.00049589,31]
[312635740,1706122300783,-500.0,0.00049589,31]
[312635741,1706122300793,-500.0,0.00049589,31]
[312635742,1706122300804,-500.0,0.00049589,31]
[312635743,1706122300814,-500.0,0.00049589,31]
[312635744,1706122300823,-500.0,0.00049589,31]
[312635745,1706122300832,-500.0,0.00049589,31]
[312635746,1706122300841,-500.0,0.00049589,31]
[312635747,1706122300851,-835.3,0.00049589,31]
[312635748,1706122300861,-506.9716867,0.00049589,31]
[312635749,1706122300871,-500.0,0.00049589,31]
[312635750,1706122300880,-5442.29,0.00049589,31]
[312635751,1706122300890,-500.0,0.00049589,31]
[312635752,1706122300899,-500.0,0.00049589,31]
[312635753,1706122300909,-500.0,0.00049589,31]
[312635754,1706122300919,-609.87,0.00049589,31]
[312635755,1706122300929,-500.0,0.00049589,31]
[312635756,1706122300939,-528.52167547,0.00049589,31]
[312635757,1706122300948,-1213.12,0.00049589,31]
[312635758,1706122300958,-500.0,0.00049589,31]
[312635759,1706122300967,-500.0,0.00049589,31]
[312635760,1706122300977,-500.0,0.00049589,31]
[312635761,1706122300987,-500.0,0.00049589,31]
[312635762,1706122300996,-500.0,0.00049589,31]
[312635763,1706122301005,-500.0,0.00049589,31]
[312635764,1706122301014,-766.55,0.00049589,31]
[312635765,1706122301023,-500.0,0.00049589,31]
[312635766,1706122301034,-500.0,0.00049589,31]
[312635767,1706122301043,-950.1,0.00049589,31]
[312635768,1706122301053,-891.54,0.00049589,31]
[312635769,1706122301063,-789.01,0.00049589,31]
[312635770,1706122301072,-529.11880987,0.00049589,31]
[312635771,1706122301081,-571.48,0.00049589,31]
[312635772,1706122301091,-508.81973252,0.00049589,31]
[312635773,1706122301100,-674.93,0.00049589,31]
[312635774,1706122301110,-754.8,0.00049589,31]
[312635775,1706122301119,-500.0,0.00049589,31]
[312635776,1706122301129,-500.0,0.00049589,31]
[312635777,1706122301138,-994.52,0.00049589,31]
[312635778,1706122301147,-500.0,0.00049589,31]
[312635779,1706122301158,-500.0,0.00049589,31]
[312635780,1706122301167,-619.7,0.00049589,31]
[312635781,1706122301177,-1265.56,0.00049589,31]
[312635782,1706122301187,-548.20636477,0.00049589,31]
[312635783,1706122301196,-500.0,0.00049589,31]
[312635784,1706122301206,-1000.0,0.00049589,31]
[312635785,1706122301216,-553.3,0.00049589,31]
[312635786,1706122301225,-500.0,0.00049589,31]
[312635787,1706122301235,-1031.25,0.00049589,31]
[312635788,1706122301244,-506.03200835,0.00049589,7]
[312635789,1706122301254,-697.79,0.00049589,31]
[312635790,1706122301264,-500.0,0.00049589,31]
[312635791,1706122301274,-1070.96,0.00049589,31]
[312635792,1706122301287,-500.0,0.00049589,31]
[312635793,1706122301296,-313.7,0.00049589,31]
[312635794,1706122301308,-1137.93,0.00049589,31]
[312635795,1706122301317,-500.0,0.00049589,31]
[312635796,1706122301331,-1012.33,0.00049589,31]
[312635797,1706122301341,-500.0,0.00049589,31]
[312635798,1706122301351,-876.45,0.00049589,31]
[312635799,1706122301360,-500.0,0.00049589,31]
[312635800,1706122301370,-500.0,0.00049589,31]
[312635801,1706122301381,-715.02,0.00049589,31]
[312635802,1706122301392,-500.0,0.00049589,7]
[312635803,1706122301402,-500.0,0.00049589,31]
[312635804,1706122301412,-833.81,0.00049589,31]
[312635805,1706122301423,-500.0,0.00049589,31]
[312635806,1706122301433,-500.0,0.00049589,31]
[312635807,1706122301442,-1061.9,0.00049589,31]
[312635808,1706122301452,-500.0,0.00049589,31]
[312635809,1706122301461,-500.0,0.00049589,31]
[312635810,1706122301471,-1257.58,0.00049589,31]
[312635811,1706122301480,-500.0,0.00049589,31]
[312635812,1706122301490,-500.0,0.00049589,31]
[312635813,1706122301501,-980.87,0.00049589,31]
[312635814,1706122301510,-642.76,0.00049589,31]
[312635815,1706122301519,-2365.7,0.00049589,31]
[312635816,1706122301529,-512.80039945,0.00049589,31]
[312635817,1706122301539,-500.0,0.00049589,31]
[312635818,1706122301549,-550.34,0.00049589,31]
[312635819,1706122301558,-575.15938305,0.00049589,31]
[312635820,1706122301568,-500.0,0.00049589,31]
[312635821,1706122301578,-500.0,0.00049589,31]
[312635822,1706122301587,-9651.62,0.00049589,5]
[312635823,1706122301598,-500.0,0.00049589,31]
[312635824,1706122301608,-500.0,0.00049589,31]
[312635825,1706122301618,-500.0,0.00049589,31]
[312635826,1706122301628,-500.0,0.00049589,31]
[312635827,1706122301639,-502.54691559,0.00049589,31]
[312635828,1706122301648,-500.0,0.00049589,31]
[312635829,1706122301658,-508.04039842,0.00049589,31]
[312635830,1706122301667,-1273.8,0.00049589,31]
[312635831,1706122301677,-500.0,0.00049589,31]
[312635832,1706122301686,-516.0,0.00049589,31]
[312635833,1706122301696,-259.15,0.00049589,31]
[312635834,1706122301705,-500.0,0.00049589,31]
[312635835,1706122301714,-517.25027292,0.00049589,31]
[312635836,1706122301724,-848.97,0.00049589,31]
[312635837,1706122301733,-500.0,0.00049589,31]
[312635838,1706122301742,-500.0,0.00049589,31]
[312635839,1706122301752,-826.53,0.00049589,31]
[312635840,1706122301761,-500.0,0.00049589,31]
[312635841,1706122301771,-500.0,0.00049589,31]
[312635842,1706122301780,-570.78,0.00049589,31]
[312635843,1706122301789,-500.0,0.00049589,31]
[312635844,1706122301798,-750.28,0.00049589,31]
[312635845,1706122301813,-500.0,0.00049589,31]
[312635846,1706122301834,-647.3,0.00049589,31]
[312635847,1706122301851,-582.35155906,0.00049589,31]
[312635848,1706122301872,-1277.6,0.00049589,31]
[312635849,1706122301890,-886.52,0.00049589,31]
[312635850,1706122301906,-500.0,0.00049589,31]
[312635851,1706122301924,-744.61,0.00049589,31]
[312635852,1706122301943,-6353.27,0.00049589,5]
[312635853,1706122301963,-500.0,0.00049589,31]
[312635854,1706122301981,-688.18,0.00049589,31]
[312635855,1706122302001,-500.0,0.00049589,31]
[312635856,1706122302016,-500.0,0.00049589,31]
[312635857,1706122302032,-508.47840632,0.00049589,31]
[312635858,1706122302050,-585.99,0.00049589,31]
[312635859,1706122302063,-500.0,0.00049589,31]
[312635860,1706122302080,-200.0,0.00049589,14]
[312635861,1706122302097,-500.0,0.00049589,31]
[312635862,1706122302111,-500.0,0.00049589,31]
[312635863,1706122302127,-500.0,0.00049589,31]
[312635864,1706122302141,-522.81995332,0.00049589,31]
[312635865,1706122302158,-500.0,0.00049589,31]
[312635866,1706122302172,-1311.12,0.00049589,31]
[312635867,1706122302187,-500.0,0.00049589,31]
[312635868,1706122302203,-500.0,0.00049589,31]
[312635869,1706122302219,-635.69,0.00049589,31]
[312635870,1706122302233,-500.0,0.00049589,31]
[312635871,1706122302249,-2747.11,0.00049589,31]
[312635872,1706122302264,-1064.36,0.00049589,31]
[312635873,1706122302282,-500.0,0.00049589,31]
[312635874,1706122302297,-988.82,0.00049589,31]
[312635875,1706122302314,-500.0,0.00049589,31]
[312635876,1706122302330,-336.97,0.00049589,31]
[312635877,1706122302344,-500.0,0.00049589,31]
[312635878,1706122302359,-500.0,0.00049589,31]
[312635879,1706122302374,-500.0,0.00049589,31]
[312635880,1706122302388,-506.02,0.00049589,31]
[312635881,1706122302405,-500.0,0.00049589,31]
[312635882,1706122302419,-500.0,0.00049589,31]
[312635883,1706122302434,-500.0,0.00049589,31]
[312635884,1706122302449,-4014.55,0.00049589,31]
[312635885,1706122302464,-996.79,0.00049589,31]
[312635886,1706122302479,-500.0,0.00049589,31]
[312635887,1706122302494,-500.0,0.00049589,31]
[312635888,1706122302509,-517.50608678,0.00049589,31]
[312635889,1706122302524,-500.0,0.00049589,31]
[312635890,1706122302539,-879.67,0.00049589,31]
[312635891,1706122302553,-505.91169482,0.00049589,31]
[312635892,1706122302567,-500.0,0.00049589,31]
[312635893,1706122302581,-554.43128216,0.00049589,31]
[312635894,1706122302595,-500.0,0.00049589,31]
[312635895,1706122302609,-500.0,0.00049589,31]
[312635896,1706122302624,-556.81,0.00049589,31]
[312635897,1706122302638,-500.0,0.00049589,31]
[312635898,1706122302654,-1740.65,0.00049589,31]
[312635899,1706122302670,-500.0,0.00049589,31]
[312635900,1706122302686,-722.88,0.00049589,31]
[312635901,1706122302702,-500.0,0.00049589,31]
[312635902,1706122302717,-1257.39,0.00049589,31]
[312635903,1706122302733,-891.73,0.00049589,31]
[312635904,1706122302748,-703.85,0.00049589,31]
[312635905,1706122302763,-1603.09,0.00049589,31]
[312635906,1706122302778,-500.0,0.00049589,31]
[312635907,1706122302793,-509.72204897,0.00049589,31]
[312635908,1706122302808,-500.0,0.00049589,31]
[312635909,1706122302823,-500.0,0.00049589,31]
[312635910,1706122302839,-4733.77,0.00049589,31]
[312635911,1706122302855,-3077.84,0.00049589,31]
[312635912,1706122302877,-427.55488426,0.00049589,31]
[312635913,1706122302892,-500.0,0.00049589,31]
[312635914,1706122302907,-534.53,0.00049589,31]
[312635915,1706122302922,-500.0,0.00049589,31]
[312635916,1706122302938,-2216.62,0.00049589,31]
[312635917,1706122302954,-654.54,0.00049589,31]
[312635918,1706122302970,-1335.18,0.00049589,31]
[312635919,1706122302986,-510.61479102,0.00049589,31]
[312635920,1706122303002,-500.0,0.00049589,31]
[312635921,1706122303026,-603.22,0.00049589,31]
[312635922,1706122303043,-820.02,0.00049589,31]
[312635923,1706122303062,-4058.85,0.00049589,31]
[312635924,1706122303078,-500.0,0.00049589,31]
[312635925,1706122303094,-870.48,0.00049589,31]
[312635926,1706122303111,-500.0,0.00049589,30]
[312635927,1706122303126,-1196.3,0.00049589,31]
[312635928,1706122303141,-500.0,0.00049589,31]
[312635929,1706122303156,-691.03,0.00049589,31]
[312635930,1706122303172,-500.0,0.00049589,31]
[312635931,1706122303187,-504.17121594,0.00049589,31]
[312635932,1706122303202,-518.60169249,0.00049589,31]
[312635933,1706122303217,-500.0,0.00049589,31]
[312635934,1706122303232,-506.34,0.00049589,31]
[312635935,1706122303247,-1595.23,0.00049589,31]
[312635936,1706122303262,-500.0,0.00049589,31]
[312635937,1706122303278,-500.0,0.00049589,31]
[312635938,1706122303293,-9475.21,0.00049589,31]
[312635939,1706122303314,-325.41743198,0.00049589,31]
[312635940,1706122303332,-500.0,0.00049589,31]
[312635941,1706122303349,-2256.81,0.00049589,31]
[312635942,1706122303365,-500.0,0.00049589,31]
[312635943,1706122303382,-500.0,0.00049589,31]
[312635944,1706122303401,-2007.79,0.00049589,31]
[312635945,1706122303417,-500.0,0.00049589,31]
[312635946,1706122303433,-504.15,0.00049589,31]
[312635947,1706122303449,-500.0,0.00049589,31]
[312635948,1706122303464,-949.97,0.00049589,31]
[312635949,1706122303481,-760.02,0.00049589,31]
[312635950,1706122303496,-518.90138595,0.00049589,31]
[312635951,1706122303512,-1753.67,0.00049589,2]
[312635952,1706122303528,-960.34,0.00049589,31]
[312635953,1706122303544,-500.0,0.00049589,31]
[312635954,1706122303564,-505.36004534,0.00049589,31]
[312635955,1706122303579,-500.0,0.00049589,31]
[312635956,1706122303593,-500.0,0.00049589,31]
[312635957,1706122303608,-895.93,0.00049589,31]
[312635958,1706122303623,-500.0,0.00049589,31]
[312635959,1706122303639,-500.0,0.00049589,31]
[312635960,1706122303655,-500.0,0.00049589,31]
[312635961,1706122303669,-500.0,0.00049589,31]
[312635962,1706122303683,-508.52864446,0.00049589,31]
[312635963,1706122303698,-9793.91,0.00049589,31]
[312635964,1706122303714,-630.07,0.00049589,31]
[312635965,1706122303729,-500.0,0.00049589,31]
[312635966,1706122303745,-1085.19,0.00049589,31]
[312635967,1706122303761,-500.0,0.00049589,31]
[312635968,1706122303777,-733.81,0.00049589,31]
[312635969,1706122303793,-500.0,0.00049589,31]
[312635970,1706122303811,-500.0,0.00049589,31]
[312635971,1706122303826,-500.0,0.00049589,31]
[312635972,1706122303840,-822.62,0.00049589,31]
[312635973,1706122304103,-500.0,0.00049589,31]
[312635974,1706122304131,-786.38,0.00049589,31]
[312635975,1706122304142,-5724.55,0.00049589,31]
[312635976,1706122304152,-2304.75,0.00049589,31]
[312635977,1706122304162,-527.09616991,0.00049589,2]
[312635978,1706122304172,-583.81,0.00049589,31]
[312635979,1706122304182,-1209.52,0.00049589,31]
[312635980,1706122304192,-500.0,0.00049589,31]
[312635981,1706122304202,-500.0,0.00049589,31]
[312635982,1706122304212,-921.04,0.00049589,31]
[312635983,1706122304222,-1294.87,0.00049589,31]
[312635984,1706122304233,-593.18,0.00049589,31]
[312635985,1706122304244,-500.0,0.00049589,31]
[312635986,1706122304253,-509.13543577,0.00049589,31]
[312635987,1706122304263,-511.00966975,0.00049589,31]
[312635988,1706122304274,-500.0,0.00049589,31]
[312635989,1706122304285,-650.95,0.00049589,31]
[312635990,1706122304295,-604.69,0.00049589,31]
[312635991,1706122304306,-1239.0,0.00049589,31]
[312635992,1706122304316,-1539.95,0.00049589,31]
[312635993,1706122304326,-502.76992589,0.00049589,31]
[312635994,1706122304337,-8834.98,0.00049589,31]
[312635995,1706122304346,-500.0,0.00049589,31]
[312635996,1706122304356,-547.48,0.00049589,31]
[312635997,1706122304366,-500.0,0.00049589,31]
[312635998,1706122304377,-500.0,0.00049589,31]
[312635999,1706122304387,-2142.95,0.00049589,7]
[312636001,1706122304397,-1282.38,0.00049589,31]
[312636002,1706122304407,-966.05,0.00049589,31]
[312636003,1706122304418,-646.44,0.00049589,31]
[312636004,1706122304428,-747.91,0.00049589,31]
[312636005,1706122304438,-1871.41,0.00049589,31]
[312636006,1706122304448,-912.87,0.00049589,31]
[312636007,1706122304457,-1116.62,0.00049589,31]
[312636008,1706122304467,-833.57,0.00049589,31]
[312636009,1706122304476,-500.0,0.00049589,31]
[312636010,1706122304485,-500.0,0.00049589,31]
[312636011,1706122304495,-500.0,0.00049589,31]
[312636012,1706122304504,-500.0,0.00049589,31]
[312636013,1706122304514,-500.0,0.00049589,31]
[312636014,1706122304523,-1268.63,0.00049589,31]
[312636015,1706122304532,-657.31,0.00049589,31]
[312636016,1706122304541,-500.0,0.00049589,31]
[312636017,1706122304553,-521.83362556,0.00049589,31]
[312636018,1706122304563,-591.9370134,0.00049589,31]
[312636019,1706122304573,-500.0,0.00049589,31]
[312636020,1706122304583,-507.87079552,0.00049589,31]
[312636021,1706122304592,-500.0,0.00049589,31]